fUST/lending_fUST_20250801
["ID","MTS","AMOUNT","RATE_DAILY","PERIOD"]
[376490021,1753995048377,-463.57,0.00019726,2]
[376490023,1753995048386,-568.87503191,0.00019726,2]
[376490025,1753995048395,-460.0,0.00019726,2]
[376490027,1753995048404,-460.0,0.00019726,2]
[376490029,1753995048414,-489.34,0.00019726,2]
[376490031,1753995048422,-1128.7,0.00019726,2]
[376490033,1753995048432,-441.0,0.00019726,2]
[376490035,1753995048441,-460.0,0.00019726,2]
[376490037,1753995048452,-2123.8,0.00019726,2]
[376490039,1753995048461,-587.47,0.00019726,2]
[376490041,1753995048471,-460.0,0.00019726,2]
[376490043,1753995048480,-460.0,0.00019726,2]
[376490045,1753995048490,-460.0,0.00019726,2]
[376490047,1753995048500,-492.5,0.00019726,2]
[376490049,1753995048509,-741.22,0.00019726,2]
[376490051,1753995048518,-2198.77,0.00019726,2]
[376490052,1753995048528,-460.0,0.00019726,2]
[376490054,1753995048540,-640.53,0.00019726,2]
[376490056,1753995048549,-460.0,0.00019726,2]
[376490058,1753995048559,-762.27,0.00019726,2]
[376490060,1753995048568,-694.17,0.00019726,2]
[376490062,1753995048579,-460.0,0.00019726,2]
[376490064,1753995048588,-1831.59,0.00019726,2]
[376490066,1753995048598,-460.0,0.00019726,2]
[376490068,1753995048608,-721.58,0.00019726,2]
[376490082,1753995048737,-932.13,0.00019726,2]
[376490085,1753995048767,-920.61,0.00019726,2]
[376490087,1753995048777,-701.76,0.00019726,2]
[376490089,1753995048786,-818.49,0.00019726,2]
[376490091,1753995048795,-1109.77,0.00019726,2]
[376490093,1753995048805,-627.24,0.00019726,2]
[376490095,1753995048815,-460.0,0.00019726,2]
[376490097,1753995048824,-460.0,0.00019726,2]
[376490099,1753995048833,-460.0,0.00019726,2]
[376490101,1753995048843,-460.0,0.00019726,2]
[376490103,1753995048853,-3005.61,0.00019726,2]
[376490105,1753995048863,-460.0,0.00019726,2]
[376490107,1753995048872,-460.0,0.00019726,2]
[376490109,1753995048881,-460.0,0.00019726,2]
[376490110,1753995048891,-463.13885218,0.00019726,2]
[376490112,1753995048900,-460.0,0.00019726,2]
[376490114,1753995048910,-2012.92888184,0.00019726,2]
[376490149,1753995049458,-460.0,0.00019178,2]
[376490150,1753995049467,-460.0,0.00019452,2]
[376490152,1753995049477,-5194.60111816,0.00019726,2]
[376490154,1753995049486,-460.0,0.00019726,2]
[376490156,1753995049495,-460.0,0.00019726,2]
[376490157,1753995049504,-730.31,0.00019726,2]
[376490159,1753995049514,-460.0,0.00019726,2]
[376490161,1753995049523,-460.0,0.00019726,2]
[376490164,1753995049534,-460.0,0.00019726,2]
[376490165,1753995049546,-216.18812866,0.00019784,2]
[376490167,1753995049556,-12642.0599901,0.00019784,2]
[376490170,1753995049565,-160.0,0.00019784,2]
[376490172,1753995049575,-214.99831783,0.00019785,2]
[376490174,1753995049584,-151.0,0.000199,2]
[376490176,1753995049594,-1197.02,0.00019999,2]
[376490177,1753995049603,-1197.02,0.00019999,2]
[376490179,1753995049614,-521.69,0.00019999,2]
[376490182,1753995049624,-521.69,0.00019999,2]
[376490183,1753995049633,-2699.99123563,0.0002,4]
[376490185,1753995049643,-460.0,0.0002,2]
[376490187,1753995049652,-460.0,0.0002,2]
[376490190,1753995049662,-460.0,0.0002,2]
[376490191,1753995049671,-460.0,0.0002,2]
[376490193,1753995049680,-460.0,0.0002,2]
[376490195,1753995049689,-460.0,0.0002,2]
[376490197,1753995049698,-460.0,0.0002,2]
[376490199,1753995049708,-460.0,0.0002,2]
[376490201,1753995049716,-555.41649974,0.0002,2]
[376490203,1753995049726,-460.0,0.0002,2]
[376490205,1753995049735,-460.0,0.0002,2]
[376490208,1753995049746,-515.74,0.0002,2]
[376490209,1753995049755,-460.0,0.0002,2]
[376490211,1753995049764,-460.0,0.0002,2]
[376490213,1753995049774,-700.18,0.0002,2]
[376490215,1753995049783,-460.0,0.0002,2]
[376490217,1753995049793,-460.0,0.0002,2]
[376490219,1753995049803,-460.0,0.0002,2]
[376490221,1753995049812,-460.0,0.0002,2]
[376490223,1753995049821,-460.0,0.0002,2]
[376490225,1753995049831,-460.0,0.0002,2]
[376490227,1753995049840,-462.06,0.0002,2]
[376490229,1753995049850,-151.0,0.0002,3]
[376490231,1753995049859,-460.0,0.0002,2]
[376490233,1753995049869,-460.0,0.0002,2]
[376490236,1753995049878,-460.0,0.0002,2]
[376490237,1753995049888,-460.0,0.0002,2]
[376490239,1753995049897,-460.0,0.0002,2]
[376490241,1753995049907,-460.0,0.0002,2]
[376490243,1753995049916,-460.0,0.0002,2]
[376490245,1753995049925,-460.0,0.0002,2]
[376490247,1753995049935,-527.78,0.0002,2]
[376490249,1753995049944,-460.0,0.0002,2]
[376490251,1753995049954,-460.0,0.0002,2]
[376490253,1753995049966,-460.0,0.0002,2]
[376490255,1753995049976,-460.0,0.0002,2]
[376490257,1753995049985,-1986.4,0.0002,2]
[376490258,1753995049994,-460.0,0.0002,2]
[376490259,1753995050003,-460.0,0.0002,2]
[376490260,1753995050013,-460.0,0.0002,2]
[376490261,1753995050022,-460.0,0.0002,2]
[376490262,1753995050031,-460.0,0.0002,2]
[376490263,1753995050041,-460.0,0.0002,2]
[376490264,1753995050051,-460.0,0.0002,2]
[376490265,1753995050060,-460.0,0.0002,2]
[376490266,1753995050069,-460.0,0.0002,2]
[376490267,1753995050079,-500.63,0.0002,2]
[376490268,1753995050088,-508.6,0.0002,2]
[376490269,1753995050097,-639.05,0.0002,2]
[376490270,1753995050106,-620.2,0.0002,2]
[376490271,1753995050116,-460.0,0.0002,2]
[376490272,1753995050125,-659.86,0.0002,2]
[376490273,1753995050134,-460.0,0.0002,2]
[376490274,1753995050143,-904.0,0.0002,2]
[376490275,1753995050153,-640.02,0.0002,2]
[376490276,1753995050161,-499.8,0.0002,2]
[376490277,1753995050170,-460.0,0.0002,2]
[376490278,1753995050180,-957.56,0.0002,2]
[376490279,1753995050189,-760.85,0.0002,2]
[376490280,1753995050199,-460.0,0.0002,2]
[376490281,1753995050208,-792.01,0.0002,2]
[376490282,1753995050217,-626.8,0.0002,2]
[376490283,1753995050227,-1781.17,0.0002,2]
[376490284,1753995050236,-460.0,0.0002,2]
[376490285,1753995050245,-1841.51482644,0.0002,2]
[376490291,1753995050381,-840.73517356,0.0002,2]
[376490293,1753995050391,-532.13,0.0002,2]
[376490295,1753995050400,-17.25382644,0.0002,2]
[376492093,1753995254678,3679.3463387,0.00018383,2]
[376492102,1753995521389,348.546617,0.00013699,2]
[376492104,1753995536819,5000.0,0.0001879,2]
[376492106,1753995573928,294.283378,0.00018221,2]
[376492107,1753995596494,1000.0,0.00018359,2]
[376492113,1753995634359,24900.0,0.00018221,2]
[376492132,1753995861100,5000.0,0.0001879,2]
[376492134,1753995918465,205.304832,0.00027397,120]
[376492156,1753996232267,-240.92804093,0.000189,2]
[376492158,1753996232277,-545.95134428,0.00018977,2]
[376492160,1753996232286,-433.40171714,0.00019078,2]
[376492170,1753996232377,-352.5277078,0.00019078,2]
[376492172,1753996232387,-349.0798112,0.00019078,2]
[376492174,1753996232396,-1200.0,0.00019172,2]
[376492176,1753996232406,-500.0,0.00019173,2]
[376492178,1753996232415,-55.452481,0.00019173,2]
[376492180,1753996232426,-444.547519,0.00019173,2]
[376492182,1753996232435,-500.0,0.00019173,2]
[376492183,1753996232445,-300.0,0.00019174,2]
[376492184,1753996232454,-152.412481,0.00019174,2]
[376492280,1753996239049,-147.587519,0.00019174,2]
[376492282,1753996239059,-188.0,0.00019174,2]
[376492284,1753996239068,-460.73916283,0.00019178,2]
[376492285,1753996239078,-460.0,0.00019178,2]
[376492286,1753996239087,-460.0,0.00019178,2]
[376492287,1753996239096,-460.0,0.00019178,2]
[376492288,1753996239106,-460.0,0.00019178,2]
[376492289,1753996239116,-259.60550748,0.00019178,2]
[376492290,1753996239133,-460.0,0.00019178,2]
[376492291,1753996239142,-460.0,0.00019178,2]
[376492292,1753996239151,-460.0,0.00019178,2]
[376492293,1753996239163,-460.0,0.00019178,2]
[376492294,1753996239172,-460.0,0.00019178,2]
[376492295,1753996239182,-460.0,0.00019178,2]
[376492296,1753996239191,-480.35489582,0.00019178,2]
[376492297,1753996239200,-460.0,0.00019178,2]
[376492298,1753996239209,-460.0,0.00019178,2]
[376492299,1753996239219,-460.0,0.00019178,2]
[376492300,1753996239229,-460.0,0.00019178,2]
[376492301,1753996239239,-460.0,0.00019178,2]
[376492302,1753996239248,-460.0,0.00019178,2]
[376492303,1753996239259,-460.0,0.00019178,2]
[376492304,1753996239268,-460.0,0.00019178,2]
[376492305,1753996239278,-460.0,0.00019178,2]
[376492306,1753996239287,-460.0,0.00019178,2]
[376492307,1753996239296,-461.07810939,0.00019178,2]
[376492308,1753996239305,-460.0,0.00019178,2]
[376492309,1753996239314,-460.0,0.00019178,2]
[376492310,1753996239323,-460.0,0.00019178,2]
[376492311,1753996239334,-379.49281714,0.00019178,2]
[376492312,1753996239343,-460.0,0.00019178,2]
[376492313,1753996239352,-460.0,0.00019178,2]
[376492314,1753996239361,-447.94976595,0.00019178,2]
[376492315,1753996239370,-460.0,0.00019178,2]
[376492316,1753996239379,-460.0,0.00019178,2]
[376492317,1753996239388,-460.0,0.00019178,2]
[376492318,1753996239398,-460.0,0.00019178,2]
[376492319,1753996239408,-460.0,0.00019178,2]
[376492320,1753996239420,-460.0,0.00019178,2]
[376492321,1753996239430,-460.0,0.00019178,2]
[376492322,1753996239439,-460.0,0.00019178,2]
[376492323,1753996239448,-460.0,0.00019178,2]
[376492324,1753996239457,-460.0,0.00019178,2]
[376492325,1753996239467,-460.0,0.00019178,2]
[376492326,1753996239476,-460.0,0.00019178,2]
[376492327,1753996239485,-460.0,0.00019178,2]
[376492328,1753996239494,-460.0,0.00019178,2]
[376492329,1753996239513,-460.0,0.00019178,2]
[376492330,1753996239523,-460.0,0.00019178,2]
[376492331,1753996239532,-460.0,0.00019178,2]
[376492332,1753996239542,-460.0,0.00019178,2]
[376492333,1753996239551,-460.0,0.00019178,2]
[376492334,1753996239561,-818.99,0.00019178,2]
[376492335,1753996239571,-460.0,0.00019178,2]
[376492336,1753996239580,-460.0,0.00019178,2]
[376492337,1753996239590,-460.0,0.00019178,2]
[376492338,1753996239600,-460.0,0.00019178,2]
[376492339,1753996239610,-460.0,0.00019178,2]
[376492340,1753996239620,-566.08,0.00019178,2]
[376492341,1753996239630,-460.0,0.00019178,2]
[376492342,1753996239639,-460.0,0.00019178,2]
[376492343,1753996239648,-460.0,0.00019178,2]
[376492344,1753996239658,-460.0,0.00019178,2]
[376492345,1753996239667,-460.0,0.00019178,2]
[376492346,1753996239676,-236.79421173,0.00019178,2]
[376492347,1753996239686,-460.0,0.00019178,2]
[376492348,1753996239695,-460.0,0.00019178,2]
[376492349,1753996239705,-460.0,0.00019178,2]
[376492350,1753996239714,-460.0,0.00019178,2]
[376492351,1753996239723,-460.0,0.00019178,2]
[376492352,1753996239733,-460.0,0.00019178,2]
[376492353,1753996239743,-416.06567115,0.00019178,2]
[376492354,1753996239752,-460.0,0.00019178,2]
[376492356,1753996239762,-460.0,0.00019178,2]
[376492357,1753996239771,-460.0,0.00019178,2]
[376492358,1753996239780,-460.0,0.00019178,2]
[376492359,1753996239790,-460.0,0.00019178,2]
[376492360,1753996239799,-460.0,0.00019178,2]
[376492361,1753996239809,-460.0,0.00019178,2]
[376492362,1753996239818,-460.0,0.00019178,2]
[376492363,1753996239828,-460.0,0.00019178,2]
[376492364,1753996239838,-460.0,0.00019178,2]
[376492366,1753996239847,-460.0,0.00019178,2]
[376492367,1753996239857,-460.0,0.00019178,2]
[376492369,1753996239871,-460.0,0.00019178,2]
[376492370,1753996239880,-460.0,0.00019178,2]
[376492371,1753996239890,-460.0,0.00019178,2]
[376492372,1753996239899,-460.0,0.00019178,2]
[376492373,1753996239911,-230.4922342,0.00019178,2]
[376492375,1753996239932,-229.5077658,0.00019178,2]
[376492377,1753996239943,-648.38,0.00019178,2]
[376492379,1753996239952,-648.38,0.00019178,2]
[376492381,1753996239962,-648.38,0.00019178,2]
[376492383,1753996239971,-648.38,0.00019178,2]
[376492385,1753996239981,-648.38,0.00019178,2]
[376492387,1753996239991,-648.38,0.00019178,2]
[376492389,1753996240000,-648.38,0.00019178,2]
[376492391,1753996240010,-460.0,0.00019178,2]
[376492393,1753996240020,-460.0,0.00019178,2]
[376492395,1753996240031,-460.0,0.00019178,2]
[376492397,1753996240040,-460.0,0.00019178,2]
[376492399,1753996240050,-460.0,0.00019178,2]
[376492401,1753996240060,-460.0,0.00019178,2]
[376492403,1753996240069,-460.0,0.00019178,2]
[376492405,1753996240078,-511.71,0.00019178,2]
[376492407,1753996240088,-460.0,0.00019178,2]
[376492409,1753996240097,-460.0,0.00019178,2]
[376492411,1753996240107,-358.69951484,0.00019178,2]
[376492413,1753996240116,-460.0,0.00019178,2]
[376492415,1753996240126,-460.0,0.00019178,2]
[376492417,1753996240135,-460.0,0.00019178,2]
[376492420,1753996240148,-460.0,0.00019178,2]
[376492422,1753996240158,-460.0,0.00019178,2]
[376492424,1753996240168,-460.0,0.00019178,2]
[376492426,1753996240178,-460.0,0.00019178,2]
[376492428,1753996240189,-460.0,0.00019178,2]
[376492430,1753996240204,-460.0,0.00019178,2]
[376492432,1753996240215,-460.0,0.00019178,2]
[376492434,1753996240226,-2393.77,0.00019178,2]
[376492436,1753996240238,-460.0,0.00019178,2]
[376492438,1753996240248,-460.0,0.00019178,2]
[376492440,1753996240259,-460.0,0.00019178,2]
[376492443,1753996240271,-217.89499838,0.00019178,2]
[376492445,1753996240281,-460.0,0.00019178,2]
[376492447,1753996240291,-560.47,0.00019178,2]
[376492449,1753996240303,-460.0,0.00019178,2]
[376492451,1753996240313,-460.0,0.00019178,2]
[376492453,1753996240323,-460.0,0.00019178,2]
[376492455,1753996240333,-460.0,0.00019178,2]
[376492457,1753996240343,-460.0,0.00019178,2]
[376492459,1753996240353,-460.0,0.00019178,2]
[376492462,1753996240363,-267.97525475,0.00019178,2]
[376492464,1753996240373,-460.0,0.00019178,2]
[376492466,1753996240383,-460.0,0.00019178,2]
[376492468,1753996240392,-460.0,0.00019178,2]
[376492470,1753996240403,-460.0,0.00019178,2]
[376492472,1753996240412,-460.0,0.00019178,2]
[376492474,1753996240423,-500.0,0.00019178,2]
[376492476,1753996240432,-500.0,0.00019178,2]
[376492478,1753996240442,-500.0,0.00019178,2]
[376492480,1753996240454,-500.0,0.00019178,2]
[376492482,1753996240464,-500.0,0.00019178,2]
[376492484,1753996240473,-500.0,0.00019178,2]
[376492486,1753996240483,-460.0,0.00019178,2]
[376492488,1753996240492,-460.0,0.00019178,2]
[376492490,1753996240503,-460.0,0.00019178,2]
[376492492,1753996240513,-460.0,0.00019178,2]
[376492494,1753996240522,-460.0,0.00019178,2]
[376492496,1753996240532,-460.0,0.00019178,2]
[376492499,1753996240542,-460.0,0.00019178,2]
[376492501,1753996240554,-191.87171075,0.00019178,2]
[376492503,1753996240564,-460.0,0.00019178,2]
[376492505,1753996240574,-460.0,0.00019178,2]
[376492507,1753996240583,-460.0,0.00019178,2]
[376492509,1753996240593,-617.03,0.00019178,2]
[376492511,1753996240605,-311.12388248,0.00019178,2]
[376492513,1753996240614,-1076.94,0.00019178,2]
[376492515,1753996240624,-460.0,0.00019178,2]
[376492517,1753996240633,-180.77539851,0.00019178,2]
[376492519,1753996240643,-465.9192075,0.00019178,2]
[376492521,1753996240652,-460.0,0.00019178,2]
[376492523,1753996240662,-460.0,0.00019178,2]
[376492525,1753996240671,-460.0,0.00019178,2]
[376492527,1753996240680,-705.22,0.00019178,2]
[376492529,1753996240690,-460.0,0.00019178,2]
[376492531,1753996240700,-739.04,0.00019178,2]
[376492533,1753996240710,-460.0,0.00019178,2]
[376492535,1753996240719,-460.0,0.00019178,2]
[376492537,1753996240729,-460.0,0.00019178,2]
[376492539,1753996240739,-534.81,0.00019178,2]
[376492541,1753996240748,-460.0,0.00019178,2]
[376492544,1753996240758,-460.0,0.00019178,2]
[376492566,1753996240767,-828.67,0.00019178,2]
[376492568,1753996240968,-460.0,0.00019178,2]
[376492570,1753996240978,-460.0,0.00019178,2]
[376492572,1753996240987,-3320.35,0.00019178,2]
[376492574,1753996240996,-463.19842376,0.00019178,2]
[376492576,1753996241006,-465.68674025,0.00019178,2]
[376492578,1753996241015,-849.65,0.00019178,2]
[376492580,1753996241024,-460.0,0.00019178,2]
[376492582,1753996241034,-466.92753966,0.00019178,2]
[376492584,1753996241043,-460.0,0.00019178,2]
[376492586,1753996241052,-460.0,0.00019178,2]
[376492588,1753996241061,-4583.99,0.00019178,2]
[376492591,1753996241071,-460.0,0.00019178,2]
[376492593,1753996241080,-460.0,0.00019178,2]
[376492595,1753996241089,-460.0,0.00019178,2]
[376492597,1753996241098,-460.0,0.00019178,2]
[376492599,1753996241107,-757.88,0.00019178,2]
[376492601,1753996241116,-460.0,0.00019178,2]
[376492603,1753996241126,-222.22956333,0.00019178,2]
[376492612,1753996241211,-6951.82043667,0.00019178,2]
[376492614,1753996241222,-1291.27,0.00019178,2]
[376492616,1753996241231,-1941.2,0.00019178,2]
[376492618,1753996241241,-487.78,0.00019178,2]
[376492620,1753996241251,-670.4,0.00019178,2]
[376492622,1753996241260,-460.0,0.00019178,2]
[376492624,1753996241270,-2211.28,0.00019178,2]
[376492626,1753996241279,-460.0,0.00019178,2]
[376492628,1753996241289,-460.0,0.00019178,2]
[376492630,1753996241298,-460.0,0.00019178,2]
[376492632,1753996241308,-918.72,0.00019178,2]
[376492634,1753996241317,-460.0,0.00019178,2]
[376492636,1753996241326,-460.0,0.00019178,2]
[376492638,1753996241336,-460.0,0.00019178,2]
[376492640,1753996241345,-850.78,0.00019178,2]
[376492642,1753996241354,-460.0,0.00019178,2]
[376492644,1753996241364,-464.62650634,0.00019178,2]
[376492646,1753996241374,-460.0,0.00019178,2]
[376492648,1753996241383,-3289.96,0.00019178,2]
[376492650,1753996241392,-460.0,0.00019178,2]
[376492652,1753996241402,-211.13035058,0.00019178,2]
[376492654,1753996241411,-1786.07,0.00019178,2]
[376492656,1753996241420,-460.0,0.00019178,2]
[376492659,1753996241429,-460.0,0.00019178,2]
[376492661,1753996241439,-460.0,0.00019178,2]
[376492664,1753996241459,-460.0,0.00019178,2]
[376492666,1753996241470,-460.0,0.00019178,2]
[376492668,1753996241480,-493.57067686,0.00019178,2]
[376492670,1753996241490,-460.0,0.00019178,2]
[376492672,1753996241501,-1393.56,0.00019178,2]
[376492674,1753996241511,-482.59,0.00019178,2]
[376492676,1753996241521,-460.0,0.00019178,2]
[376492678,1753996241530,-460.0,0.00019178,2]
[376492680,1753996241540,-460.0,0.00019178,2]
[376492682,1753996241550,-460.0,0.00019178,2]
[376492684,1753996241560,-460.0,0.00019178,2]
[376492687,1753996241570,-460.0,0.00019178,2]
[376492689,1753996241581,-1233.99,0.00019178,2]
[376492691,1753996241590,-460.0,0.00019178,2]
[376492693,1753996241599,-2286.64,0.00019178,2]
[376492695,1753996241609,-646.71,0.00019178,2]
[376492697,1753996241619,-624.55,0.00019178,2]
[376492699,1753996241629,-460.0,0.00019178,2]
[376492701,1753996241638,-545.62,0.00019178,2]
[376492703,1753996241648,-845.59,0.00019178,2]
[376492705,1753996241658,-741.91,0.00019178,2]
[376492707,1753996241667,-459.99381542,0.00019178,2]
[376492709,1753996241677,-460.0,0.00019178,2]
[376492711,1753996241687,-460.0,0.00019178,2]
[376492713,1753996241696,-230.30582454,0.00019178,2]
[376492716,1753996241707,-460.0,0.00019178,2]
[376492718,1753996241716,-600.1333014,0.00019178,2]
[376492720,1753996241725,-460.0,0.00019178,2]
[376492722,1753996241735,-460.0,0.00019178,2]
[376492724,1753996241745,-460.0,0.00019178,2]
[376492726,1753996241754,-460.0,0.00019178,2]
[376492728,1753996241763,-472.79331907,0.00019178,2]
[376492730,1753996241773,-460.0,0.00019178,2]
[376492732,1753996241782,-460.0,0.00019178,2]
[376492734,1753996241792,-697.15,0.00019178,2]
[376492736,1753996241801,-460.0,0.00019178,2]
[376492738,1753996241811,-492.54,0.00019178,2]
[376492740,1753996241821,-522.14,0.00019178,2]
[376492742,1753996241831,-460.0,0.00019178,2]
[376492744,1753996241841,-460.17543406,0.00019178,2]
[376492746,1753996241851,-460.0,0.00019178,2]
[376492748,1753996241863,-2412.78,0.00019178,2]
[376492750,1753996241877,-460.0,0.00019178,2]
[376492753,1753996241887,-861.05,0.00019178,2]
[376492755,1753996241896,-460.0,0.00019178,2]
[376492757,1753996241906,-460.0,0.00019178,2]
[376492759,1753996241917,-460.0,0.00019178,2]
[376492761,1753996241926,-460.0,0.00019178,2]
[376492763,1753996241936,-460.0,0.00019178,2]
[376492765,1753996241947,-460.0,0.00019178,2]
[376492767,1753996241958,-2496.28,0.00019178,2]
[376492769,1753996241968,-460.0,0.00019178,2]
[376492771,1753996241978,-460.0,0.00019178,2]
[376492773,1753996241988,-460.0,0.00019178,2]
[376492775,1753996241997,-460.0,0.00019178,2]
[376492777,1753996242007,-781.0,0.00019178,2]
[376492779,1753996242017,-460.0,0.00019178,2]
[376492781,1753996242027,-349.36129447,0.00019178,2]
[376492783,1753996242036,-494.15987481,0.00019178,2]
[376492785,1753996242046,-1245.4,0.00019178,2]
[376492787,1753996242055,-460.0,0.00019178,2]
[376492789,1753996242064,-586.68,0.00019178,2]
[376492791,1753996242075,-954.08,0.00019178,2]
[376492793,1753996242084,-460.0,0.00019178,2]
[376492795,1753996242094,-460.0,0.00019178,2]
[376492797,1753996242103,-460.0,0.00019178,2]
[376492800,1753996242112,-735.27,0.00019178,2]
[376492802,1753996242122,-807.17,0.00019178,2]
[376492804,1753996242131,-803.62,0.00019178,2]
[376492805,1753996242141,-460.0,0.00019178,2]
[376492807,1753996242150,-7811.56,0.00019178,2]
[376492809,1753996242159,-460.0,0.00019178,2]
[376492811,1753996242169,-460.0,0.00019178,2]
[376492813,1753996242178,-569.44219641,0.00019178,2]
[376492815,1753996242188,-2081.66,0.00019178,2]
[376492817,1753996242197,-460.0,0.00019178,2]
[376492819,1753996242208,-460.0,0.00019178,2]
[376492821,1753996242217,-460.0,0.00019178,2]
[376492823,1753996242228,-232.64254641,0.00019178,2]
[376492825,1753996242237,-460.0,0.00019178,2]
[376492827,1753996242246,-274.867477,0.00019178,2]
[376492829,1753996242255,-460.0,0.00019178,2]
[376492831,1753996242265,-460.0,0.00019178,2]
[376492833,1753996242274,-460.0,0.00019178,2]
[376492835,1753996242284,-657.88,0.00019178,2]
[376492837,1753996242294,-460.0,0.00019178,2]
[376492839,1753996242303,-460.0,0.00019178,2]
[376492841,1753996242312,-850.62,0.00019178,2]
[376492843,1753996242322,-2765.89,0.00019178,2]
[376492845,1753996242332,-460.0,0.00019178,2]
[376492847,1753996242342,-184.766065,0.00019178,2]
[376492849,1753996242351,-500.0,0.00019178,2]
[376492851,1753996242361,-6552.6248551,0.00019352,2]
[376492853,1753996242370,-500.0,0.0001945,2]
[376492855,1753996242379,-616.62337773,0.00019451,2]
[376492856,1753996242389,-336.91857792,0.00019451,2]
[376492858,1753996242398,-500.0,0.00019451,2]
[376492860,1753996242407,-232.46828923,0.00019451,2]
[376492862,1753996242416,-500.0,0.00019451,2]
[376492863,1753996242425,-178.47524989,0.00019451,2]
[376492864,1753996242435,-250.46629377,0.00019451,2]
[376492865,1753996242444,-648.38,0.00019451,2]
[376492866,1753996242454,-648.38,0.00019451,2]
[376492867,1753996242463,-648.38,0.00019451,2]
[376492868,1753996242472,-648.38,0.00019451,2]
[376492869,1753996242481,-648.38,0.00019451,2]
[376492870,1753996242490,-500.0,0.00019451,2]
[376492871,1753996242499,-500.0,0.00019451,2]
[376492872,1753996242516,-460.0,0.00019452,2]
[376492873,1753996242531,-460.0,0.00019452,2]
[376492874,1753996242544,-460.0,0.00019452,2]
[376492875,1753996242557,-460.0,0.00019452,2]
[376492876,1753996242571,-411.11534169,0.00019452,2]
[376492877,1753996242582,-460.0,0.00019452,2]
[376492878,1753996242592,-460.0,0.00019452,2]
[376492879,1753996242605,-460.0,0.00019452,2]
[376492880,1753996242616,-460.0,0.00019452,2]
[376492882,1753996242630,-460.0,0.00019452,2]
[376492884,1753996242642,-460.0,0.00019452,2]
[376492887,1753996242654,-460.0,0.00019452,2]
[376492889,1753996242667,-460.0,0.00019452,2]
[376492892,1753996242679,-460.0,0.00019452,2]
[376492896,1753996242690,-460.0,0.00019452,2]
[376492898,1753996242703,-460.0,0.00019452,2]
[376492900,1753996242716,-460.0,0.00019452,2]
[376492904,1753996242730,-818.99,0.00019452,2]
[376492906,1753996242742,-470.94341834,0.00019452,2]
[376492908,1753996242753,-460.0,0.00019452,2]
[376492910,1753996242765,-460.0,0.00019452,2]
[376492914,1753996242778,-566.08,0.00019452,2]
[376492916,1753996242789,-460.0,0.00019452,2]
[376492918,1753996242800,-460.0,0.00019452,2]
[376492920,1753996242813,-460.0,0.00019452,2]
[376492923,1753996242826,-460.0,0.00019452,2]
[376492925,1753996242838,-460.0,0.00019452,2]